[Event "*** Titled Tuesday 3|2 Blitz"]
[Site "Chess.com"]
[Date "2015.08.04"]
[Round "1"]
[White "Dlugy"]
[Black "kesarev"]
[Result "1-0"]
[WhiteElo "2543"]
[BlackElo "2182"]
[TimeControl "180+2"]
[EndTime "11:39:24 PDT"]
[Termination "Dlugy won by resignation"]

1. d4 {[%clk 0:03:00.8]} 1... g6 {[%clk 0:02:59.2]} 2. c4 {[%clk 0:03:01.7]}
2... Bg7 {[%clk 0:03:00.3]} 3. e4 {[%clk 0:03:03.2]} 3... c5 {[%clk 0:02:59.5]}
4. d5 {[%clk 0:03:03.2]} 4... d6 {[%clk 0:03:00.2]} 5. Bd3 {[%clk 0:03:03.4]}
5... Nf6 {[%clk 0:03:00.3]} 6. Nc3 {[%clk 0:03:04.5]} 6... O-O {[%clk
0:03:01.1]} 7. h3 {[%clk 0:03:05.7]} 7... e6 {[%clk 0:03:02.3]} 8. Nf3 {[%clk
0:03:07.3]} 8... exd5 {[%clk 0:03:03.3]} 9. exd5 {[%clk 0:03:08.9]} 9... Re8+
{[%clk 0:03:01.6]} 10. Be3 {[%clk 0:03:10.3]} 10... Bh6 {[%clk 0:02:55.3]} 11.
O-O {[%clk 0:03:11.8]} 11... Bxe3 {[%clk 0:02:51.8]} 12. fxe3 {[%clk 0:03:13.2]}
12... Nbd7 {[%clk 0:02:52.8]} 13. Qd2 {[%clk 0:03:12.8]} 13... Ne5 {[%clk
0:02:50.1]} 14. Nxe5 {[%clk 0:03:13.3]} 14... Rxe5 {[%clk 0:02:50.6]} 15. Rf3
{[%clk 0:03:14.1]} 15... Nh5 {[%clk 0:02:28.3]} 16. Raf1 {[%clk 0:03:10.9]}
16... f5 {[%clk 0:02:29.3]} 17. e4 {[%clk 0:02:35.2]} 17... Ng7 {[%clk
0:02:13.8]} 18. Qh6 {[%clk 0:02:21.9]} 18... Qe7 {[%clk 0:01:31.3]} 19. exf5
{[%clk 0:01:59.5]} 19... Bxf5 {[%clk 0:01:21]} 20. g4 {[%clk 0:01:51.3]} 20...
Bxd3 {[%clk 0:01:16.1]} 21. Rxd3 {[%clk 0:01:53.2]} 21... Rf8 {[%clk 0:01:08.2]}
22. Rxf8+ {[%clk 0:01:33.8]} 22... Qxf8 {[%clk 0:01:08.8]} 23. Kg2 {[%clk
0:01:35.3]} 23... Qe7 {[%clk 0:00:53]} 24. Rf3 {[%clk 0:01:30.4]} 24... a6
{[%clk 0:00:42.1]} 25. Kf2 {[%clk 0:01:16.1]} 25... b5 {[%clk 0:00:21.9]} 26.
Re3 {[%clk 0:00:56.6]} 26... b4 {[%clk 0:00:20]} 27. Ne2 {[%clk 0:00:51.6]}
27... Qf6+ {[%clk 0:00:19.2]} 28. Qf4 {[%clk 0:00:48.8]} 28... Nf5 {[%clk
0:00:16.6]} 29. Rxe5 {[%clk 0:00:41]} 29... dxe5 {[%clk 0:00:17.6]} 30. Qf3
{[%clk 0:00:41.3]} 30... Qh4+ {[%clk 0:00:18.4]} 31. Kg2 {[%clk 0:00:39.7]}
31... Nd6 {[%clk 0:00:15.7]} 32. b3 {[%clk 0:00:37.2]} 32... Kg7 {[%clk
0:00:16.4]} 33. Qe3 {[%clk 0:00:36]} 33... Qf6 {[%clk 0:00:16.8]} 34. Qxc5
{[%clk 0:00:34.2]} 34... Ne4 {[%clk 0:00:16.7]} 35. Qe3 {[%clk 0:00:34.9]} 35...
Ng5 {[%clk 0:00:16.5]} 36. c5 {[%clk 0:00:31.3]} 36... e4 {[%clk 0:00:16]} 37.
c6 {[%clk 0:00:29.9]} 37... Qf3+ {[%clk 0:00:13.9]} 38. Qxf3 {[%clk 0:00:29.4]}
38... exf3+ {[%clk 0:00:15.8]} 39. Kf1 {[%clk 0:00:16.2]} 39... fxe2+ {[%clk
0:00:17.7]} 40. Kxe2 {[%clk 0:00:17.4]} 40... Nf7 {[%clk 0:00:17.6]} 41. Kd3
{[%clk 0:00:17.7]} 41... Kf6 {[%clk 0:00:18.1]} 42. Kd4 {[%clk 0:00:18.9]} 42...
Nd6 {[%clk 0:00:18.8]} 43. Kc5 {[%clk 0:00:19.9]} 43... Ke5 {[%clk 0:00:19.9]}
44. c7 {[%clk 0:00:20.4]} 44... a5 {[%clk 0:00:20.3]} 45. g5 {[%clk 0:00:21.2]}
45... Nc8 {[%clk 0:00:20.5]} 46. Kc6 {[%clk 0:00:21.5]} 46... Nd6 {[%clk
0:00:21]} 47. h4 {[%clk 0:00:20.8]} 47... Nc8 {[%clk 0:00:22]} 48. Kd7 {[%clk
0:00:19.9]} 48... Nd6 {[%clk 0:00:23.4]} 49. c8=Q {[%clk 0:00:20.9]} 49... Nxc8
{[%clk 0:00:23.9]} 50. Kxc8 {[%clk 0:00:22.8]} 50... Kxd5 {[%clk 0:00:25.2]} 51.
Kd7 {[%clk 0:00:24.4]} 51... Ke5 {[%clk 0:00:24.1]} 52. Ke7 {[%clk 0:00:26.3]}
52... Kd5 {[%clk 0:00:25.3]} 53. Kf7 {[%clk 0:00:27.5]} 53... Kd6 {[%clk
0:00:26.3]} 54. Kg7 {[%clk 0:00:29.1]} 54... Ke6 {[%clk 0:00:27.7]} 55. Kxh7
{[%clk 0:00:31]} 55... Kf7 {[%clk 0:00:28.4]} 56. Kh6 {[%clk 0:00:32.7]} 1-0

[Event "*** Titled Tuesday 3|2 Blitz"]
[Site "Chess.com"]
[Date "2015.08.04"]
[Round "1"]
[White "petrpalachev"]
[Black "michaelk123"]
[Result "1/2-1/2"]
[WhiteElo "2347"]
[BlackElo "1989"]
[TimeControl "180+2"]
[EndTime "11:39:24 PDT"]
[Termination "Game drawn by agreement"]

1. d4 {[%clk 0:03:01]} 1... Nf6 {[%clk 0:03:00.3]} 2. c4 {[%clk 0:03:01.8]} 2...
g6 {[%clk 0:03:01]} 3. Nc3 {[%clk 0:03:02.2]} 3... d5 {[%clk 0:03:02.1]} 4. Qb3
{[%clk 0:03:00]} 4... dxc4 {[%clk 0:03:02.2]} 5. Qxc4 {[%clk 0:03:01.9]} 5...
Bg7 {[%clk 0:03:04.1]} 6. e4 {[%clk 0:02:59.7]} 6... Be6 {[%clk 0:02:55]} 7.
Qb5+ {[%clk 0:02:57.9]} 7... Bd7 {[%clk 0:02:55.4]} 8. Qb3 {[%clk 0:02:33.6]}
8... c5 {[%clk 0:02:54.3]} 9. dxc5 {[%clk 0:02:27]} 9... O-O {[%clk 0:02:52.3]}
10. Be2 {[%clk 0:02:25.2]} 10... Nc6 {[%clk 0:02:49.8]} 11. Be3 {[%clk
0:02:25.8]} 11... Ng4 {[%clk 0:02:22.4]} 12. Bxg4 {[%clk 0:02:24.6]} 12... Bxg4
{[%clk 0:02:24.3]} 13. f3 {[%clk 0:02:24.3]} 13... Be6 {[%clk 0:02:25.4]} 14.
Qa4 {[%clk 0:02:15.6]} 14... Rc8 {[%clk 0:02:07]} 15. Nge2 {[%clk 0:02:06.3]}
15... Qa5 {[%clk 0:01:58.7]} 16. Qxa5 {[%clk 0:02:05.5]} 16... Nxa5 {[%clk
0:02:00.6]} 17. b4 {[%clk 0:01:44.5]} 17... Nc4 {[%clk 0:01:40.8]} 18. Bf2
{[%clk 0:01:44.6]} 18... Rfd8 {[%clk 0:01:37.4]} 19. O-O {[%clk 0:01:29.1]}
19... Rd2 {[%clk 0:01:35.3]} 20. Rfd1 {[%clk 0:01:26]} 20... Rcd8 {[%clk
0:01:35.1]} 21. Rxd2 {[%clk 0:01:26.8]} 21... Rxd2 {[%clk 0:01:36.2]} 22. Rd1
{[%clk 0:01:25.5]} 22... Rxd1+ {[%clk 0:00:40.3]} 23. Nxd1 {[%clk 0:01:27.4]}
23... Na3 {[%clk 0:00:41.3]} 24. Ndc3 {[%clk 0:01:13.9]} 24... Bc4 {[%clk
0:00:40.7]} 25. c6 {[%clk 0:00:57.3]} 25... bxc6 {[%clk 0:00:40.3]} 26. Bxa7
{[%clk 0:00:57.6]} 26... Nb5 {[%clk 0:00:37.6]} 27. Nxb5 {[%clk 0:00:49.7]}
27... cxb5 {[%clk 0:00:36]} 28. Nd4 {[%clk 0:00:35.6]} 28... Bxd4+ {[%clk
0:00:34.1]} 29. Bxd4 {[%clk 0:00:37.5]} 29... Bxa2 {[%clk 0:00:35.5]} 30. Kf2
{[%clk 0:00:38.9]} 30... Bc4 {[%clk 0:00:35.8]} 31. Bc5 {[%clk 0:00:39.2]} 31...
e6 {[%clk 0:00:34.3]} 32. e5 {[%clk 0:00:40.1]} 32... g5 {[%clk 0:00:33.1]} 33.
Be7 {[%clk 0:00:38]} 33... h6 {[%clk 0:00:34]} 34. Ke3 {[%clk 0:00:32.2]} 34...
Kh7 {[%clk 0:00:34.3]} 35. h4 {[%clk 0:00:24.6]} 35... Kg6 {[%clk 0:00:34.7]}
36. g3 {[%clk 0:00:22.2]} 36... gxh4 {[%clk 0:00:28.5]} 37. Bxh4 {[%clk
0:00:22.6]} 37... Bf1 {[%clk 0:00:28.7]} 38. Ke4 {[%clk 0:00:23.4]} 38... Bc4
{[%clk 0:00:29.3]} 39. g4 {[%clk 0:00:21.8]} 39... h5 {[%clk 0:00:28.6]} 40.
gxh5+ {[%clk 0:00:17.2]} 40... Kxh5 {[%clk 0:00:29.6]} 41. Bf6 {[%clk
0:00:18.6]} 41... Kg6 {[%clk 0:00:26.4]} 42. Kf4 {[%clk 0:00:19.8]} 42... Bf1
{[%clk 0:00:26.5]} 43. Kg4 {[%clk 0:00:21.7]} 43... Bc4 {[%clk 0:00:26.8]} 44.
f4 {[%clk 0:00:23.6]} 44... Be2+ {[%clk 0:00:27.2]} 45. Kg3 {[%clk 0:00:24.6]}
45... Kf5 {[%clk 0:00:29]} 46. Kf2 {[%clk 0:00:26.2]} 46... Bc4 {[%clk
0:00:27.9]} 47. Ke3 {[%clk 0:00:28.1]} 47... Bf1 {[%clk 0:00:27.8]} 48. Bg5
{[%clk 0:00:30]} 48... Bc4 {[%clk 0:00:28.8]} 49. Kd4 {[%clk 0:00:31.9]} 49...
Bf1 {[%clk 0:00:29.8]} 50. Kc5 {[%clk 0:00:33.3]} 50... Bc4 {[%clk 0:00:28.8]}
51. Kd6 {[%clk 0:00:34.9]} 51... Kg6 {[%clk 0:00:30.1]} 52. Ke7 {[%clk
0:00:36.2]} 52... Bf1 {[%clk 0:00:31.1]} 53. Ke8 {[%clk 0:00:37]} 53... Bc4
{[%clk 0:00:31.7]} 54. Kf8 {[%clk 0:00:38.9]} 54... Bf1 {[%clk 0:00:32.2]} 55.
Kg8 {[%clk 0:00:40.8]} 55... Bc4 {[%clk 0:00:33.3]} 56. Kh8 {[%clk 0:00:41.8]}
56... Bd3 {[%clk 0:00:34.7]} 57. Kg8 {[%clk 0:00:40.6]} 57... Bc4 {[%clk
0:00:35.5]} 58. Kf8 {[%clk 0:00:42.5]} 58... Bd3 {[%clk 0:00:36.9]} 59. Ke7
{[%clk 0:00:44.4]} 59... Bc4 {[%clk 0:00:38.5]} 60. Kd6 {[%clk 0:00:46.3]} 60...
Bd3 {[%clk 0:00:39.7]} 61. Kc5 {[%clk 0:00:47.4]} 61... Bc4 {[%clk 0:00:40.7]}
62. Kd4 {[%clk 0:00:46.4]} 1/2-1/2

[Event "*** Titled Tuesday 3|2 Blitz"]
[Site "Chess.com"]
[Date "2015.08.04"]
[Round "1"]
[White "josiwales"]
[Black "facu57"]
[Result "1/2-1/2"]
[WhiteElo "2038"]
[BlackElo "2396"]
[TimeControl "180+2"]
[EndTime "11:39:28 PDT"]
[Termination "Game drawn by agreement"]

1. e4 {[%clk 0:02:54.6]} 1... c6 {[%clk 0:03:00]} 2. d4 {[%clk 0:02:54.8]} 2...
d5 {[%clk 0:03:01.9]} 3. Nc3 {[%clk 0:02:56.7]} 3... dxe4 {[%clk 0:03:03]} 4.
Nxe4 {[%clk 0:02:58.6]} 4... Nf6 {[%clk 0:03:04.9]} 5. Ng3 {[%clk 0:02:58.1]}
5... e5 {[%clk 0:03:05.2]} 6. Nf3 {[%clk 0:02:59]} 6... exd4 {[%clk 0:03:06.1]}
7. Qxd4 {[%clk 0:02:58.6]} 7... Qxd4 {[%clk 0:03:04.7]} 8. Nxd4 {[%clk
0:03:00.5]} 8... Bc5 {[%clk 0:03:05.8]} 9. Ndf5 {[%clk 0:03:00.5]} 9... O-O
{[%clk 0:02:46.5]} 10. Be3 {[%clk 0:02:59.2]} 10... Re8 {[%clk 0:02:43.2]} 11.
O-O-O {[%clk 0:02:56.6]} 11... Bxe3+ {[%clk 0:02:44.1]} 12. Nxe3 {[%clk
0:02:53.7]} 12... Be6 {[%clk 0:02:45.5]} 13. Nef5 {[%clk 0:02:51.4]} 13... b5
{[%clk 0:02:46.6]} 14. Nd6 {[%clk 0:02:49.7]} 14... Rd8 {[%clk 0:02:47.2]} 15.
Be2 {[%clk 0:02:48.2]} 15... Bd5 {[%clk 0:02:42.3]} 16. Ndf5 {[%clk 0:02:46.1]}
16... Kf8 {[%clk 0:02:37.3]} 17. Bf3 {[%clk 0:02:44.5]} 17... Na6 {[%clk
0:02:36.2]} 18. Bxd5 {[%clk 0:02:43.6]} 18... Nxd5 {[%clk 0:02:37.1]} 19. Ne4
{[%clk 0:02:41.7]} 19... Nf4 {[%clk 0:02:38.1]} 20. g3 {[%clk 0:02:38]} 20...
Ne6 {[%clk 0:02:35.7]} 21. f4 {[%clk 0:02:32.4]} 21... Nac5 {[%clk 0:02:36.1]}
22. Nxc5 {[%clk 0:02:26.8]} 22... Nxc5 {[%clk 0:02:38]} 23. Rhe1 {[%clk
0:02:25]} 23... Ne6 {[%clk 0:02:35.6]} 24. Nd6 {[%clk 0:02:20.8]} 24... Ke7
{[%clk 0:02:34]} 25. Nf5+ {[%clk 0:02:19.9]} 25... Kf6 {[%clk 0:02:32.5]} 26.
Nd6 {[%clk 0:02:19.4]} 26... g6 {[%clk 0:02:31]} 27. g4 {[%clk 0:02:12.3]} 27...
Nxf4 {[%clk 0:02:25.5]} 28. Rf1 {[%clk 0:02:09.3]} 28... g5 {[%clk 0:02:22.2]}
29. h4 {[%clk 0:02:10.5]} 29... h6 {[%clk 0:02:23.7]} 30. hxg5+ {[%clk
0:02:03.4]} 30... hxg5 {[%clk 0:02:24]} 31. Ne4+ {[%clk 0:01:46.2]} 31... Kg6
{[%clk 0:02:18.8]} 32. Nd6 {[%clk 0:01:45.6]} 32... Rd7 {[%clk 0:02:16]} 33. Nf5
{[%clk 0:01:40.3]} 33... Rxd1+ {[%clk 0:02:16.8]} 34. Rxd1 {[%clk 0:01:40.2]}
34... Nd5 {[%clk 0:02:12.3]} 35. b3 {[%clk 0:01:37.1]} 35... Re8 {[%clk
0:02:11.2]} 36. c4 {[%clk 0:01:36.7]} 36... Nf6 {[%clk 0:02:09.2]} 37. Rd6
{[%clk 0:01:35]} 37... bxc4 {[%clk 0:02:05.8]} 38. bxc4 {[%clk 0:01:34.9]} 38...
Re6 {[%clk 0:02:00.7]} 39. Rxe6 {[%clk 0:01:35.5]} 39... fxe6 {[%clk 0:02:02.6]}
40. Ne7+ {[%clk 0:01:37.4]} 40... Kf7 {[%clk 0:02:02.7]} 41. Nxc6 {[%clk
0:01:39.3]} 41... Nxg4 {[%clk 0:02:00.6]} 42. Nxa7 {[%clk 0:01:39.8]} 42... Ne5
{[%clk 0:01:59.6]} 43. c5 {[%clk 0:01:40]} 43... Nd3+ {[%clk 0:01:58.2]} 44. Kd2
{[%clk 0:01:40.6]} 44... Nxc5 {[%clk 0:02:00.1]} 45. Ke3 {[%clk 0:01:41.6]}
45... Na4 {[%clk 0:01:58.1]} 46. Nc6 {[%clk 0:01:41.3]} 46... Kf6 {[%clk
0:01:58.5]} 47. a3 {[%clk 0:01:40.9]} 47... e5 {[%clk 0:01:56.9]} 48. Kf3 {[%clk
0:01:39.7]} 48... Kf5 {[%clk 0:01:53.3]} 49. Ne7+ {[%clk 0:01:38.6]} 49... Ke6
{[%clk 0:01:54.9]} 50. Nc6 {[%clk 0:01:39.2]} 50... Kf6 {[%clk 0:01:54]} 51. Ke4
{[%clk 0:01:36.1]} 51... Nc3+ {[%clk 0:01:51.8]} 52. Kf3 {[%clk 0:01:36.1]}
52... Kf5 {[%clk 0:01:52.8]} 53. Ne7+ {[%clk 0:01:33.8]} 53... Ke6 {[%clk
0:01:54.4]} 54. Nc6 {[%clk 0:01:34.7]} 54... Kd5 {[%clk 0:01:50.9]} 55. Ne7+
{[%clk 0:01:32.8]} 55... Kc4 {[%clk 0:01:40.1]} 56. Kg4 {[%clk 0:01:30.9]} 56...
e4 {[%clk 0:01:39.5]} 57. Nf5 {[%clk 0:01:27.6]} 57... Nb5 {[%clk 0:01:40.6]}
58. Kxg5 {[%clk 0:01:27.2]} 58... Nxa3 {[%clk 0:01:39.5]} 59. Kf4 {[%clk
0:01:28.2]} 59... Kd3 {[%clk 0:01:39.6]} 60. Kg3 {[%clk 0:01:23.3]} 60... Nc2
{[%clk 0:01:37.3]} 61. Kf2 {[%clk 0:01:23.5]} 61... Na1 {[%clk 0:01:34.9]} 62.
Ke1 {[%clk 0:01:22.2]} 62... Nb3 {[%clk 0:01:36.8]} 63. Kd1 {[%clk 0:01:22.3]}
63... Nd2 {[%clk 0:01:33.6]} 64. Ke1 {[%clk 0:01:21]} 64... Nf3+ {[%clk
0:01:32.8]} 65. Kd1 {[%clk 0:01:22.1]} 65... Ne5 {[%clk 0:01:27.4]} 66. Ke1
{[%clk 0:01:21.9]} 66... Ng4 {[%clk 0:01:28.4]} 67. Ng3 {[%clk 0:01:00.3]} 67...
e3 {[%clk 0:01:28.6]} 68. Nf1 {[%clk 0:01:01]} 68... e2 {[%clk 0:01:21.3]} 69.
Ng3 {[%clk 0:01:01]} 69... Ne5 {[%clk 0:01:20.3]} 70. Nxe2 {[%clk 0:01:00.3]}
70... Nf3+ {[%clk 0:01:21.9]} 71. Kd1 {[%clk 0:01:00.5]} 71... Nd2 {[%clk
0:01:23.8]} 1/2-1/2

[Event "*** Titled Tuesday 3|2 Blitz"]
[Site "Chess.com"]
[Date "2015.08.04"]
[Round "1"]
[White "Fh2411"]
[Black "tigertom4444"]
[Result "1-0"]
[WhiteElo "2110"]
[BlackElo "2436"]
[TimeControl "180+2"]
[EndTime "11:39:30 PDT"]
[Termination "Fh2411 won by resignation"]

1. d4 {[%clk 0:03:01.3]} 1... Nf6 {[%clk 0:03:00.2]} 2. Bf4 {[%clk 0:02:59.9]}
2... g6 {[%clk 0:03:01.1]} 3. e3 {[%clk 0:03:01.4]} 3... Bg7 {[%clk 0:03:02.6]}
4. Nf3 {[%clk 0:03:02.7]} 4... O-O {[%clk 0:03:04.1]} 5. Be2 {[%clk 0:03:03.6]}
5... d6 {[%clk 0:03:05.7]} 6. h3 {[%clk 0:02:56.1]} 6... Nc6 {[%clk 0:03:06.6]}
7. O-O {[%clk 0:02:50.1]} 7... Re8 {[%clk 0:03:07.3]} 8. c4 {[%clk 0:02:42.4]}
8... Nh5 {[%clk 0:02:59.4]} 9. Bh2 {[%clk 0:02:39.4]} 9... e5 {[%clk 0:03:00.6]}
10. Nc3 {[%clk 0:02:34]} 10... exd4 {[%clk 0:02:16.1]} 11. exd4 {[%clk
0:02:31.4]} 11... Nf6 {[%clk 0:02:15]} 12. Bd3 {[%clk 0:02:23.4]} 12... Nd7
{[%clk 0:01:48.3]} 13. Bc2 {[%clk 0:02:09.1]} 13... Nb6 {[%clk 0:01:48.9]} 14.
b3 {[%clk 0:01:57.4]} 14... Qf6 {[%clk 0:01:49.7]} 15. Ne4 {[%clk 0:01:50.4]}
15... Qd8 {[%clk 0:01:36.9]} 16. Nc3 {[%clk 0:01:24.3]} 16... Bd7 {[%clk
0:01:30.3]} 17. Qd2 {[%clk 0:01:16.7]} 17... Qf6 {[%clk 0:01:14]} 18. Ne4 {[%clk
0:01:01.1]} 18... Qe7 {[%clk 0:01:14.4]} 19. Rae1 {[%clk 0:00:58.8]} 19... Qf8
{[%clk 0:01:15.7]} 20. Bf4 {[%clk 0:00:47.6]} 20... Bf5 {[%clk 0:01:14.5]} 21.
g4 {[%clk 0:00:42]} 21... Bxe4 {[%clk 0:01:14.8]} 22. Bxe4 {[%clk 0:00:40.8]}
22... Nd7 {[%clk 0:01:06.6]} 23. Bb1 {[%clk 0:00:28.4]} 23... Re7 {[%clk
0:00:57.1]} 24. Rxe7 {[%clk 0:00:27.9]} 24... Qxe7 {[%clk 0:00:59]} 25. Re1
{[%clk 0:00:28.9]} 25... Qf6 {[%clk 0:01:00.2]} 26. g5 {[%clk 0:00:21.4]} 26...
Qe6 {[%clk 0:00:50.2]} 27. Rxe6 {[%clk 0:00:20]} 27... fxe6 {[%clk 0:00:52.1]}
28. d5 {[%clk 0:00:20.1]} 28... Nd8 {[%clk 0:00:49.6]} 29. dxe6 {[%clk
0:00:19.3]} 29... Nxe6 {[%clk 0:00:51.5]} 30. Bg3 {[%clk 0:00:20.8]} 30... Kh8
{[%clk 0:00:48.6]} 31. Be4 {[%clk 0:00:22]} 31... Ndc5 {[%clk 0:00:47.9]} 32.
Bd5 {[%clk 0:00:23]} 32... Nf8 {[%clk 0:00:44.3]} 33. b4 {[%clk 0:00:23.3]}
33... Nce6 {[%clk 0:00:37.4]} 34. Bxb7 {[%clk 0:00:22.7]} 34... Rb8 {[%clk
0:00:39]} 35. Bd5 {[%clk 0:00:23.7]} 35... Re8 {[%clk 0:00:27.2]} 36. a4 {[%clk
0:00:23.3]} 36... Nd7 {[%clk 0:00:21.3]} 37. Bxe6 {[%clk 0:00:22.6]} 37... Rxe6
{[%clk 0:00:23.2]} 38. Qd5 {[%clk 0:00:23.8]} 38... Re7 {[%clk 0:00:21.2]} 39.
a5 {[%clk 0:00:24.4]} 39... h6 {[%clk 0:00:22.4]} 40. Qa8+ {[%clk 0:00:22.3]}
40... Kh7 {[%clk 0:00:23.1]} 41. Qxa7 {[%clk 0:00:23.8]} 41... hxg5 {[%clk
0:00:24.2]} 42. Nxg5+ {[%clk 0:00:24.8]} 42... Kh6 {[%clk 0:00:25.9]} 43. Nf3
{[%clk 0:00:25.2]} 43... Nf6 {[%clk 0:00:24.6]} 44. Bf4+ {[%clk 0:00:20.2]}
44... Kh5 {[%clk 0:00:24.8]} 45. Qb8 {[%clk 0:00:19.2]} 45... Ne4 {[%clk
0:00:23.3]} 46. a6 {[%clk 0:00:20.1]} 46... Rf7 {[%clk 0:00:24.8]} 47. a7 {[%clk
0:00:15.1]} 47... Rxf4 {[%clk 0:00:25.9]} 48. Kg2 {[%clk 0:00:16.6]} 48... g5
{[%clk 0:00:18.4]} 49. Qe8+ {[%clk 0:00:16.6]} 49... Kh6 {[%clk 0:00:18.2]} 50.
a8=Q {[%clk 0:00:17.2]} 50... g4 {[%clk 0:00:19.8]} 51. Qaxe4 {[%clk 0:00:16.4]}
51... gxf3+ {[%clk 0:00:20]} 52. Qxf3 {[%clk 0:00:16.4]} 52... Rxf3 {[%clk
0:00:19.8]} 53. Kxf3 {[%clk 0:00:18.3]} 1-0

[Event "*** Titled Tuesday 3|2 Blitz"]
[Site "Chess.com"]
[Date "2015.08.04"]
[Round "1"]
[White "rhungaski"]
[Black "Haykos"]
[Result "0-1"]
[WhiteElo "2494"]
[BlackElo "2182"]
[TimeControl "180+2"]
[EndTime "11:39:39 PDT"]
[Termination "Haykos won by resignation"]

1. d4 {[%clk 0:02:55.1]} 1... g6 {[%clk 0:02:58.2]} 2. Nf3 {[%clk 0:02:51.3]}
2... Bg7 {[%clk 0:02:55.9]} 3. c4 {[%clk 0:02:50.9]} 3... d6 {[%clk 0:02:53.4]}
4. Nc3 {[%clk 0:02:51.6]} 4... e5 {[%clk 0:02:52.4]} 5. dxe5 {[%clk 0:02:48.4]}
5... dxe5 {[%clk 0:02:52.2]} 6. Qxd8+ {[%clk 0:02:50.3]} 6... Kxd8 {[%clk
0:02:54.1]} 7. Bd2 {[%clk 0:02:47.6]} 7... f6 {[%clk 0:02:54.1]} 8. O-O-O {[%clk
0:02:46.9]} 8... Nd7 {[%clk 0:02:55.5]} 9. g4 {[%clk 0:02:47.7]} 9... c6 {[%clk
0:02:52.1]} 10. Ne4 {[%clk 0:02:41.5]} 10... Kc7 {[%clk 0:02:51.6]} 11. Bb4
{[%clk 0:02:42.3]} 11... Bf8 {[%clk 0:02:47.5]} 12. Bd6+ {[%clk 0:02:22.6]}
12... Bxd6 {[%clk 0:02:39.6]} 13. Nxd6 {[%clk 0:02:24.5]} 13... Ne7 {[%clk
0:02:38.4]} 14. e3 {[%clk 0:02:24.6]} 14... Nc5 {[%clk 0:02:06.9]} 15. g5 {[%clk
0:02:21.8]} 15... Bg4 {[%clk 0:02:06.8]} 16. Be2 {[%clk 0:02:08.5]} 16... f5
{[%clk 0:02:00.8]} 17. Nf7 {[%clk 0:02:06.2]} 17... e4 {[%clk 0:02:01.4]} 18.
Nd4 {[%clk 0:01:55.9]} 18... Bxe2 {[%clk 0:02:00.4]} 19. Nxe2 {[%clk 0:01:57.8]}
19... Rhf8 {[%clk 0:01:59.3]} 20. Ne5 {[%clk 0:01:58.2]} 20... a5 {[%clk
0:01:57]} 21. Nf4 {[%clk 0:01:57.5]} 21... Rad8 {[%clk 0:01:55.4]} 22. b3 {[%clk
0:01:57.2]} 22... Rd6 {[%clk 0:01:37.1]} 23. Rd4 {[%clk 0:01:51.8]} 23... Nc8
{[%clk 0:01:33.7]} 24. Rhd1 {[%clk 0:01:43.3]} 24... Re8 {[%clk 0:01:29.9]} 25.
Nf7 {[%clk 0:01:40.7]} 25... Rd7 {[%clk 0:01:18.7]} 26. Rxd7+ {[%clk 0:01:16.2]}
26... Nxd7 {[%clk 0:01:20.6]} 27. Kc2 {[%clk 0:01:11.9]} 27... Re7 {[%clk
0:01:18.6]} 28. Nh6 {[%clk 0:01:11.6]} 28... Nd6 {[%clk 0:01:16.9]} 29. Ng8
{[%clk 0:01:08]} 29... Re8 {[%clk 0:01:17.7]} 30. Nh6 {[%clk 0:01:05.3]} 30...
b6 {[%clk 0:01:17.4]} 31. h4 {[%clk 0:01:05.2]} 31... Ne5 {[%clk 0:01:17.7]} 32.
h5 {[%clk 0:01:02.6]} 32... Nf3 {[%clk 0:01:07.5]} 33. hxg6 {[%clk 0:01:00.9]}
33... hxg6 {[%clk 0:01:09.4]} 34. Nxg6 {[%clk 0:00:58.9]} 34... Nxg5 {[%clk
0:01:10.5]} 35. Nf4 {[%clk 0:00:59.6]} 35... Ngf7 {[%clk 0:01:09]} 36. Rg1
{[%clk 0:00:58.4]} 36... Nxh6 {[%clk 0:01:08.6]} 37. Rg6 {[%clk 0:00:58.2]}
37... Nhf7 {[%clk 0:01:08.9]} 38. c5 {[%clk 0:00:59.3]} 38... bxc5 {[%clk
0:01:09.7]} 39. Ne6+ {[%clk 0:01:00.9]} 39... Kb6 {[%clk 0:01:10.4]} 40. Nf4
{[%clk 0:00:59.5]} 40... Rh8 {[%clk 0:01:11.1]} 41. a4 {[%clk 0:00:54.5]} 41...
Rh2 {[%clk 0:01:11.9]} 42. Rg8 {[%clk 0:00:56]} 42... Rxf2+ {[%clk 0:01:12.3]}
43. Kc3 {[%clk 0:00:57.5]} 43... Rf3 {[%clk 0:01:11.8]} 44. Kd2 {[%clk
0:00:58.7]} 44... c4 {[%clk 0:01:12.2]} 45. Ne6 {[%clk 0:00:49.5]} 45... cxb3
{[%clk 0:01:12]} 46. Nd4 {[%clk 0:00:51]} 46... b2 {[%clk 0:01:10.6]} 47. Rb8+
{[%clk 0:00:38.6]} 47... Nb7 {[%clk 0:01:11]} 48. Kc2 {[%clk 0:00:37.8]} 48...
Rxe3 {[%clk 0:01:11.9]} 49. Kxb2 {[%clk 0:00:38.8]} 49... f4 {[%clk 0:01:12.1]}
50. Rf8 {[%clk 0:00:39]} 50... Nbd6 {[%clk 0:01:11.9]} 51. Rb8+ {[%clk 0:00:38]}
51... Kc7 {[%clk 0:01:12.9]} 52. Rg8 {[%clk 0:00:32.1]} 52... f3 {[%clk
0:01:13.9]} 53. Rg6 {[%clk 0:00:33]} 53... Ne5 {[%clk 0:01:00.8]} 54. Ne6+
{[%clk 0:00:29.7]} 54... Kb6 {[%clk 0:01:01]} 55. Rf6 {[%clk 0:00:30.5]} 55...
f2 {[%clk 0:01:02]} 56. Ng5 {[%clk 0:00:20.7]} 56... Ndc4+ {[%clk 0:00:59.1]}
57. Kc2 {[%clk 0:00:20]} 57... Nf3 {[%clk 0:01:00.5]} 58. Nxe4 {[%clk
0:00:18.5]} 58... f1=Q {[%clk 0:00:58.3]} 0-1